[Event "Fagernes Chess Open 2025"]
[Site "Fagernes"]
[Date "2025.04.13"]
[Round "1.1"]
[White "Aroven, Mikael"]
[Black "Lien, Benjamin"]
[Result "1-0"]
[Annotator "NA"]
[ECO "C56"]
[WhiteElo "2145"]
[BlackElo "1733"]
[PlyCount "83"]
[EventDate "2025.04.12"]
[EventCountry "NOR"]
[SourceTitle "playchess.com"]
[Source "ChessBase"]
[SourceQuality "1"]
[TimeControl "40/6000+30:2400+30"]

1. e4 {[%emt 0:00:03]} e5 {[%emt 0:00:31]} 2. Nf3 {[%emt 0:00:10]} Nc6 {[%emt 0:00:07]} 3. d4 {[%emt 0:02:42]} exd4 {[%emt 0:00:18]} 4. Bc4 {[%emt 0:00:07]} Nf6 {[%emt 0:02:44]} 5. O-O {[%emt 0:01:41]} Nxe4 {[%emt 0:01:28]} 6. Nxd4 {[%emt 0:15:24]} d5 {[%emt 0:14:38]} 7. Nxc6 {[%emt 0:00:15]} bxc6 {[%emt 0:00:10]} 8. Bd3 {[%emt 0:00:15]} Nc5 {[%emt 0:07:56]} 9. Re1+ {[%emt 0:03:43]} Be7 {[%emt 0:06:26]} 10. Bg5 {[%emt 0:08:54]} Be6 {[%emt 0:05:31]} 11. Bxe7 {[%emt 0:00:53]} Qxe7 {[%emt 0:00:08]} 12. Nd2 {[%emt 0:01:45]} Qf6 {[%emt 0:10:06]} 13. Nf3 {[%emt 0:09:03]} Nd7 {[%emt 0:12:14]} 14. c3 {[%emt 0:09:01]} c5 {[%emt 0:08:41]} 15. Bb5 {[%emt 0:01:57]} Rb8 {[%emt 0:12:03]} 16. Qa4 {[%emt 0:02:38]} Rxb5 {[%emt 0:06:01]} 17. Qxb5 {[%emt 0:00:20]} O-O {[%emt 0:00:05]} 18. Qc6 {[%emt 0:04:41]} Rb8 {[%emt 0:08:07]} 19. Re2 {[%emt 0:01:06]} Bg4 {[%emt 0:03:10]} 20. Qxd5 {[%emt 0:04:52]} c6 {[%emt 0:01:48]} 21. Qe4 {[%emt 0:03:05]} Bf5 {[%emt 0:00:28]} 22. Qe3 {[%emt 0:02:31]} Be6 {[%emt 0:04:55]} 23. Rd1 {[%emt 0:02:28]} Bd5 {[%emt 0:01:29]} 24. b3 {[%emt 0:00:46]} Bxf3 {[%emt 0:02:14]} 25. Qxf3 {[%emt 0:00:34]} Qxf3 {[%emt 0:00:27]} 26. gxf3 {[%emt 0:00:02]} Nf6 {[%emt 0:00:08]} 27. Red2 {[%emt 0:03:35]} Kf8 {[%emt 0:00:20]} 28. Rd8+ {[%emt 0:00:12]} Rxd8 {[%emt 0:00:05]} 29. Rxd8+ {[%emt 0:00:06]} Ke7 {[%emt 0:00:14]} 30. Ra8 {[%emt 0:00:07]} a5 {[%emt 0:00:39]} 31. Rxa5 {[%emt 0:00:06]} Kd6 {[%emt 0:00:04]} 32. Ra7 {[%emt 0:01:16]} Nd7 {[%emt 0:00:07]} 33. f4 {[%emt 0:00:12]} h6 {[%emt 0:02:08]} 34. Kg2 {[%emt 0:00:33]} g5 {[%emt 0:01:06]} 35. Kf3 {[%emt 0:04:39]} f5 {[%emt 0:00:16]} 36. Rxd7+ {[%emt 0:07:50]} Kxd7 {[%emt 0:00:07]} 37. c4 {[%emt 0:00:03]} Ke6 {[%emt 0:00:29]} 38. Kg3 {[%emt 0:00:08]} Kd7 {[%emt 0:00:33]} 39. fxg5 {[%emt 0:00:08]} hxg5 {[%emt 0:00:09]} 40. h4 {[%emt 0:00:08]} gxh4+ {[%emt 0:00:33]} 41. Kxh4 {[%emt 0:40:02]} Ke6 {[%emt 0:40:48]} 42. f4 {[%emt 0:00:14]} 1-0

[Event "Fagernes Chess Open 2025"]
[Site "Fagernes"]
[Date "2025.04.13"]
[Round "1.2"]
[White "Johansson, Henrik"]
[Black "Engkvist, Tomas"]
[Result "0-1"]
[Annotator "NA"]
[ECO "D05"]
[WhiteElo "1730"]
[BlackElo "1969"]
[PlyCount "44"]
[EventDate "2025.04.12"]
[EventCountry "NOR"]
[SourceTitle "playchess.com"]
[Source "ChessBase"]
[SourceQuality "1"]
[TimeControl "40/6000+30:2400+30"]

1. d4 {[%emt 0:00:19]} d5 {[%emt 0:00:07]} 2. Nf3 {[%emt 0:01:10]} Nf6 {[%emt 0:00:58]} 3. e3 {[%emt 0:01:41]} e6 {[%emt 0:00:38]} 4. Bd3 {[%emt 0:01:28]} Be7 {[%emt 0:01:21]} 5. b3 {[%emt 0:02:08]} O-O {[%emt 0:00:41]} 6. Bb2 {[%emt 0:03:00]} c6 {[%emt 0:00:34]} 7. Nbd2 {[%emt 0:03:19]} Nbd7 {[%emt 0:00:32]} 8. O-O {[%emt 0:01:59]} g6 {[%emt 0:00:50]} 9. Ne5 {[%emt 0:08:28]} Nh5 {[%emt 0:02:53]} 10. f4 {[%emt 0:06:01]} Ng7 {[%emt 0:01:43]} 11. Rf3 {[%emt 0:10:32]} f5 {[%emt 0:05:55]} 12. Rh3 {[%emt 0:06:33]} Nxe5 {[%emt 0:03:25]} 13. dxe5 {[%emt 0:05:30]} b6 {[%emt 0:03:31]} 14. Nf3 {[%emt 0:05:47]} Bb7 {[%emt 0:03:35]} 15. Qe1 {[%emt 0:04:24]} c5 {[%emt 0:07:36]} 16. Qg3 {[%emt 0:03:34]} Rc8 {[%emt 0:07:17]} 17. Rf1 {[%emt 0:15:58]} Qe8 {[%emt 0:12:33]} 18. Be2 {[%emt 0:07:20]} Qf7 {[%emt 0:04:18]} 19. Rh6 {[%emt 0:03:26]} Ne8 {[%emt 0:01:28]} 20. Ng5 {[%emt 0:04:31]} Bxg5 {[%emt 0:00:11]} 21. fxg5 {[%emt 0:00:26]} Kg7 {[%emt 0:02:27]} 22. Rf4 {[%emt 0:05:05]} Nc7 {[%emt 0:00:35]} 0-1

[Event "Fagernes Chess Open 2025"]
[Site "Fagernes"]
[Date "2025.04.13"]
[Round "1.3"]
[White "Sivaparan, Isai"]
[Black "Lang, Gusztav Jr"]
[Result "1-0"]
[Annotator "NA"]
[ECO "B30"]
[WhiteElo "1944"]
[BlackElo "1729"]
[PlyCount "56"]
[EventDate "2025.04.12"]
[EventCountry "NOR"]
[SourceTitle "playchess.com"]
[Source "ChessBase"]
[SourceQuality "1"]
[TimeControl "40/6000+30:2400+30"]

1. e4 {[%emt 0:00:06]} c5 {[%emt 0:00:09]} 2. Nf3 {[%emt 0:00:11]} Nc6 {[%emt 0:00:03]} 3. Bb5 {[%emt 0:00:29]} Nd4 {[%emt 0:03:32]} 4. Nxd4 {[%emt 0:02:51]} cxd4 {[%emt 0:00:02]} 5. O-O {[%emt 0:02:38]} a6 {[%emt 0:01:46]} 6. Ba4 {[%emt 0:01:57]} e5 {[%emt 0:03:46]} 7. d3 {[%emt 0:04:37]} Nf6 {[%emt 0:02:33]} 8. f4 {[%emt 0:02:19]} Bd6 {[%emt 0:06:42]} 9. c3 {[%emt 0:15:09]} Qb6 {[%emt 0:04:38]} 10. Kh1 {[%emt 0:02:03]} O-O {[%emt 0:01:32]} 11. Nd2 {[%emt 0:03:00]} dxc3 {[%emt 0:08:15]} 12. Nc4 {[%emt 0:07:59]} Qc7 {[%emt 0:02:11]} 13. bxc3 {[%emt 0:03:08]} Nxe4 {[%emt 0:14:06]} 14. Nxd6 {[%emt 0:07:27]} Nxd6 {[%emt 0:01:09]} 15. fxe5 {[%emt 0:05:27]} Qxc3 {[%emt 0:04:49]} 16. Bf4 {[%emt 0:03:36]} Nf5 {[%emt 0:13:14]} 17. Rc1 {[%emt 0:05:06]} Qa5 {[%emt 0:10:11]} 18. d4 {[%emt 0:07:34]} Qd5 {[%emt 0:06:03]} 19. Bc2 {[%emt 0:04:36]} Nh4 {[%emt 0:20:26]} 20. Rf2 {[%emt 0:04:32]} Ng6 {[%emt 0:00:05]} 21. Qd3 {[%emt 0:03:37]} Qb5 {[%emt 0:02:49]} 22. Qg3 {[%emt 0:03:05]} Nxf4 {[%emt 0:00:39]} 23. Qxf4 {[%emt 0:00:26]} Qb6 {[%emt 0:01:19]} 24. Rf3 {[%emt 0:01:31]} Qh6 {[%emt 0:00:11]} 25. Qxh6 {[%emt 0:01:21]} gxh6 {[%emt 0:00:14]} 26. Rf6 {[%emt 0:00:32]} Re8 {[%emt 0:00:59]} 27. Bb3 {[%emt 0:01:21]} Re7 {[%emt 0:00:42]} 28. Rcf1 {[%emt 0:00:43]} d6 {[%emt 0:01:13]} 1-0

[Event "Fagernes Chess Open 2025"]
[Site "Fagernes"]
[Date "2025.04.13"]
[Round "1.4"]
[White "Odden, Jan Ove"]
[Black "Abrahamsson, Roaul"]
[Result "0-1"]
[Annotator "NA"]
[ECO "C56"]
[WhiteElo "1720"]
[BlackElo "1920"]
[PlyCount "103"]
[EventDate "2025.04.12"]
[EventCountry "NOR"]
[SourceTitle "playchess.com"]
[Source "ChessBase"]
[SourceQuality "1"]
[TimeControl "40/6000+30:2400+30"]

1. e4 {[%emt 0:00:11]} e5 {[%emt 0:00:14]} 2. Nf3 {[%emt 0:00:10]} Nc6 {[%emt 0:00:17]} 3. Bc4 {[%emt 0:00:21]} Nf6 {[%emt 0:00:14]} 4. d4 {[%emt 0:02:21]} exd4 {[%emt 0:01:02]} 5. O-O {[%emt 0:00:16]} Nxe4 {[%emt 0:00:45]} 6. Re1 {[%emt 0:01:18]} d5 {[%emt 0:00:19]} 7. Bxd5 {[%emt 0:01:23]} Qxd5 {[%emt 0:00:08]} 8. Nc3 {[%emt 0:00:11]} Qh5 {[%emt 0:00:24]} 9. Nxe4 {[%emt 0:00:55]} Be6 {[%emt 0:01:49]} 10. Neg5 {[%emt 0:04:50]} O-O-O {[%emt 0:00:56]} 11. Nxe6 {[%emt 0:04:01]} fxe6 {[%emt 0:00:20]} 12. Ng5 {[%emt 0:09:00]} Qxd1 {[%emt 0:02:35]} 13. Rxd1 {[%emt 0:00:10]} Re8 {[%emt 0:01:44]} 14. Bd2 {[%emt 0:05:00]} Bd6 {[%emt 0:04:21]} 15. c3 {[%emt 0:06:39]} e5 {[%emt 0:05:58]} 16. Ne4 {[%emt 0:03:11]} Rhf8 {[%emt 0:07:07]} 17. Rac1 {[%emt 0:02:40]} Kb8 {[%emt 0:06:36]} 18. f3 {[%emt 0:02:24]} Be7 {[%emt 0:01:51]} 19. Be1 {[%emt 0:03:09]} Rd8 {[%emt 0:03:09]} 20. a3 {[%emt 0:05:31]} a6 {[%emt 0:05:02]} 21. Bf2 {[%emt 0:07:45]} dxc3 {[%emt 0:01:43]} 22. Nxc3 {[%emt 0:04:57]} Rxd1+ {[%emt 0:05:49]} 23. Rxd1 {[%emt 0:00:24]} Rd8 {[%emt 0:02:09]} 24. Rxd8+ {[%emt 0:03:44]} Bxd8 {[%emt 0:02:14]} 25. Kf1 {[%emt 0:00:16]} Kc8 {[%emt 0:00:49]} 26. Ke2 {[%emt 0:00:59]} Kd7 {[%emt 0:00:24]} 27. Kd3 {[%emt 0:01:43]} Ke6 {[%emt 0:04:03]} 28. Ne4 {[%emt 0:02:23]} b6 {[%emt 0:02:02]} 29. Be3 {[%emt 0:01:03]} Bf6 {[%emt 0:03:05]} 30. Ng5+ {[%emt 0:03:35]} Bxg5 {[%emt 0:00:40]} 31. Bxg5 {[%emt 0:00:40]} Ne7 {[%emt 0:04:37]} 32. Ke4 {[%emt 0:03:05]} Nd5 {[%emt 0:01:20]} 33. h4 {[%emt 0:05:21]} h6 {[%emt 0:04:54]} 34. Bd2 {[%emt 0:00:40]} Nf6+ {[%emt 0:00:43]} 35. Kd3 {[%emt 0:01:10]} Kd5 {[%emt 0:00:56]} 36. Bc3 {[%emt 0:07:17]} h5 {[%emt 0:01:41]} 37. Ke3 {[%emt 0:03:46]} c5 {[%emt 0:02:50]} 38. Kd3 {[%emt 0:10:27]} g6 {[%emt 0:01:01]} 39. Ke3 {[%emt 0:01:22]} Ke6 {[%emt 0:05:08]} 40. Kd3 {[%emt 0:02:35]} Nd5 {[%emt 0:04:07]} 41. Bd2 {[%emt 0:09:16]} b5 {[%emt 0:01:16]} 42. Ke4 {[%emt 0:02:59]} Nf6+ {[%emt 0:00:41]} 43. Kd3 {[%emt 0:01:00]} Kd5 {[%emt 0:00:23]} 44. Bh6 {[%emt 0:01:30]} Ne8 {[%emt 0:05:45]} 45. Bf8 {[%emt 0:02:08]} Nc7 {[%emt 0:00:57]} 46. Bh6 {[%emt 0:01:00]} Ne6 {[%emt 0:00:36]} 47. Ke3 {[%emt 0:04:21]} c4 {[%emt 0:01:29]} 48. Kd2 {[%emt 0:01:29]} Nf4 {[%emt 0:01:43]} 49. g3 {[%emt 0:01:59]} Ne6 {[%emt 0:00:49]} 50. Ke3 {[%emt 0:03:47]} a5 {[%emt 0:01:54]} 51. Kd2 {[%emt 0:01:02]} Nd4 {[%emt 0:04:05]} 52. Ke3 {[%emt 0:00:44]} 0-1

[Event "Fagernes Chess Open 2025"]
[Site "Fagernes"]
[Date "2025.04.13"]
[Round "1.5"]
[White "Solbu, August"]
[Black "Smedsrud, Morten S"]
[Result "1-0"]
[Annotator "NA"]
[ECO "B13"]
[WhiteElo "1887"]
[BlackElo "1699"]
[PlyCount "71"]
[EventDate "2025.04.12"]
[EventCountry "NOR"]
[SourceTitle "playchess.com"]
[Source "ChessBase"]
[SourceQuality "1"]
[TimeControl "40/6000+30:2400+30"]

1. e4 {[%emt 0:00:05]} c6 {[%emt 0:03:44]} 2. d4 {[%emt 0:01:03]} d5 {[%emt 0:00:38]} 3. exd5 {[%emt 0:00:03]} cxd5 {[%emt 0:00:09]} 4. Bd3 {[%emt 0:00:05]} Nc6 {[%emt 0:00:27]} 5. c3 {[%emt 0:00:21]} Nf6 {[%emt 0:00:37]} 6. h3 {[%emt 0:00:34]} g6 {[%emt 0:00:29]} 7. Bf4 {[%emt 0:00:16]} Bg7 {[%emt 0:01:05]} 8. Nf3 {[%emt 0:00:34]} O-O {[%emt 0:01:20]} 9. O-O {[%emt 0:00:40]} Bf5 {[%emt 0:01:18]} 10. Bb5 {[%emt 0:01:45]} Rc8 {[%emt 0:06:34]} 11. Bxc6 {[%emt 0:00:58]} bxc6 {[%emt 0:03:07]} 12. Nbd2 {[%emt 0:02:18]} c5 {[%emt 0:03:12]} 13. Ne5 {[%emt 0:05:44]} cxd4 {[%emt 0:08:35]} 14. cxd4 {[%emt 0:01:45]} Qb6 {[%emt 0:06:51]} 15. Nb3 {[%emt 0:03:31]} Bc2 {[%emt 0:05:27]} 16. Qf3 {[%emt 0:02:30]} Bxb3 {[%emt 0:02:33]} 17. axb3 {[%emt 0:00:40]} Qxd4 {[%emt 0:06:34]} 18. Rfd1 {[%emt 0:05:54]} Qxb2 {[%emt 0:10:00]} 19. Rxa7 {[%emt 0:04:05]} e6 {[%emt 0:08:54]} 20. g4 {[%emt 0:35:33]} Rc2 {[%emt 0:12:19]} 21. Nd3 {[%emt 0:22:15]} Qxb3 {[%emt 0:07:05]} 22. Bd6 {[%emt 0:03:33]} Qb6 {[%emt 0:07:22]} 23. Bxf8 {[%emt 0:02:40]} Qxa7 {[%emt 0:00:08]} 24. Bb4 {[%emt 0:04:13]} Ne4 {[%emt 0:01:00]} 25. Be1 {[%emt 0:01:50]} Bd4 {[%emt 0:02:02]} 26. Rb1 {[%emt 0:03:18]} Qc7 {[%emt 0:01:06]} 27. Kg2 {[%emt 0:00:55]} Nd2 {[%emt 0:00:37]} 28. Bxd2 {[%emt 0:00:27]} Rxd2 {[%emt 0:00:03]} 29. Rb4 {[%emt 0:00:37]} Qc3 {[%emt 0:00:56]} 30. Rb8+ {[%emt 0:01:23]} Kg7 {[%emt 0:00:10]} 31. Rb7 {[%emt 0:00:21]} Qxd3 {[%emt 0:05:51]} 32. Qxf7+ {[%emt 0:04:30]} Kh6 {[%emt 0:00:13]} 33. Qf4+ {[%emt 0:00:55]} g5 {[%emt 0:00:50]} 34. Qf8+ {[%emt 0:00:04]} Kg6 {[%emt 0:01:24]} 35. Qf7+ {[%emt 0:00:04]} Kh6 {[%emt 0:00:23]} 36. Qh5# {[%emt 0:00:09]} 1-0

[Event "Fagernes Chess Open 2025"]
[Site "Fagernes"]
[Date "2025.04.13"]
[Round "1.6"]
[White "Dybvik, Bjorn Noralf"]
[Black "Ali, Karim"]
[Result "0-1"]
[Annotator "NA"]
[ECO "C01"]
[WhiteElo "1686"]
[BlackElo "1876"]
[PlyCount "90"]
[EventDate "2025.04.12"]
[EventCountry "NOR"]
[SourceTitle "playchess.com"]
[Source "ChessBase"]
[SourceQuality "1"]
[TimeControl "40/6000+30:2400+30"]

1. e4 {[%emt 0:00:15]} e6 {[%emt 0:02:44]} 2. d4 {[%emt 0:00:56]} d5 {[%emt 0:00:04]} 3. exd5 {[%emt 0:00:42]} exd5 {[%emt 0:00:08]} 4. Nf3 {[%emt 0:01:10]} Bd6 {[%emt 0:00:05]} 5. Be2 {[%emt 0:01:59]} Nf6 {[%emt 0:00:33]} 6. Bg5 {[%emt 0:00:54]} h6 {[%emt 0:00:28]} 7. Bh4 {[%emt 0:00:37]} Nc6 {[%emt 0:03:59]} 8. O-O {[%emt 0:01:15]} g5 {[%emt 0:04:41]} 9. Bg3 {[%emt 0:01:25]} Ne4 {[%emt 0:05:50]} 10. c4 {[%emt 0:07:07]} Nxg3 {[%emt 0:02:59]} 11. hxg3 {[%emt 0:02:15]} dxc4 {[%emt 0:05:49]} 12. Bxc4 {[%emt 0:02:06]} O-O {[%emt 0:00:38]} 13. Nc3 {[%emt 0:04:47]} Bg4 {[%emt 0:05:03]} 14. Qc2 {[%emt 0:10:28]} Kg7 {[%emt 0:01:00]} 15. Rad1 {[%emt 0:02:03]} Bxf3 {[%emt 0:07:21]} 16. gxf3 {[%emt 0:00:48]} Qf6 {[%emt 0:03:48]} 17. Qd3 {[%emt 0:05:02]} Nb4 {[%emt 0:08:31]} 18. Qe2 {[%emt 0:08:09]} Rfe8 {[%emt 0:00:16]} 19. Ne4 {[%emt 0:02:44]} Qg6 {[%emt 0:06:08]} 20. Qd2 {[%emt 0:03:33]} f5 {[%emt 0:01:07]} 21. Nxd6 {[%emt 0:02:31]} Qxd6 {[%emt 0:00:09]} 22. d5 {[%emt 0:06:24]} a5 {[%emt 0:12:18]} 23. a3 {[%emt 0:04:41]} Na6 {[%emt 0:01:20]} 24. Bxa6 {[%emt 0:02:39]} Qxa6 {[%emt 0:01:35]} 25. Qc3+ {[%emt 0:02:33]} Kg6 {[%emt 0:10:10]} 26. Qxc7 {[%emt 0:07:22]} Rac8 {[%emt 0:00:23]} 27. Qd7 {[%emt 0:01:19]} Rcd8 {[%emt 0:06:01]} 28. Qa4 {[%emt 0:02:03]} Re5 {[%emt 0:00:33]} 29. Qb3 {[%emt 0:02:45]} a4 {[%emt 0:03:16]} 30. Qa2 {[%emt 0:01:04]} Qd6 {[%emt 0:00:43]} 31. Qc4 {[%emt 0:04:09]} Rxd5 {[%emt 0:01:24]} 32. Rxd5 {[%emt 0:01:05]} Qxd5 {[%emt 0:00:05]} 33. Qc3 {[%emt 0:02:04]} b5 {[%emt 0:04:33]} 34. Rc1 {[%emt 0:02:25]} g4 {[%emt 0:03:59]} 35. Kg2 {[%emt 0:02:01]} Qxf3+ {[%emt 0:02:47]} 36. Qxf3 {[%emt 0:02:05]} gxf3+ {[%emt 0:00:01]} 37. Kxf3 {[%emt 0:00:37]} Rd2 {[%emt 0:00:09]} 38. Rb1 {[%emt 0:00:42]} Kg5 {[%emt 0:00:28]} 39. Ke3 {[%emt 0:03:17]} Rc2 {[%emt 0:00:19]} 40. Kf3 {[%emt 0:00:32]} h5 {[%emt 0:01:11]} 41. Kg2 {[%emt 0:41:05]} f4 {[%emt 0:46:57]} 42. b3 {[%emt 0:02:41]} fxg3 {[%emt 0:00:26]} 43. Kxg3 {[%emt 0:01:00]} Rc3+ {[%emt 0:00:07]} 44. f3 {[%emt 0:00:38]} axb3 {[%emt 0:00:00]} 45. Rb2 {[%emt 0:00:00]} h4+ {[%emt 0:00:00]} 0-1

[Event "Fagernes Chess Open 2025"]
[Site "Fagernes"]
[Date "2025.04.13"]
[Round "1.7"]
[White "Arulmaran, Abishan"]
[Black "Andersen, Even Jorstad"]
[Result "1-0"]
[Annotator "NA"]
[ECO "B20"]
[WhiteElo "1858"]
[BlackElo "1681"]
[PlyCount "77"]
[EventDate "2025.04.12"]
[EventCountry "NOR"]
[SourceTitle "playchess.com"]
[Source "ChessBase"]
[SourceQuality "1"]
[TimeControl "40/6000+30:2400+30"]

1. e4 {[%emt 0:00:23]} c5 {[%emt 0:00:46]} 2. a3 {[%emt 0:01:52]} d5 {[%emt 0:04:57]} 3. exd5 {[%emt 0:05:32]} Nf6 {[%emt 0:01:05]} 4. c4 {[%emt 0:04:45]} e6 {[%emt 0:00:15]} 5. dxe6 {[%emt 0:01:21]} Bxe6 {[%emt 0:00:08]} 6. Nf3 {[%emt 0:00:46]} Nc6 {[%emt 0:00:38]} 7. Be2 {[%emt 0:03:18]} Bd6 {[%emt 0:05:42]} 8. O-O {[%emt 0:01:55]} O-O {[%emt 0:02:17]} 9. Nc3 {[%emt 0:00:40]} Bf4 {[%emt 0:06:04]} 10. d3 {[%emt 0:07:55]} Bxc1 {[%emt 0:00:29]} 11. Rxc1 {[%emt 0:02:14]} Bg4 {[%emt 0:13:14]} 12. h3 {[%emt 0:01:05]} Bh5 {[%emt 0:11:42]} 13. g4 {[%emt 0:01:30]} Bg6 {[%emt 0:00:11]} 14. Nh4 {[%emt 0:05:36]} Nd4 {[%emt 0:05:02]} 15. Nxg6 {[%emt 0:00:00]} hxg6 {[%emt 0:00:06]} 16. Bf3 {[%emt 0:00:00]} Rb8 {[%emt 0:07:14]} 17. Bg2 {[%emt 0:00:12]} g5 {[%emt 0:03:07]} 18. Re1 {[%emt 0:14:50]} b6 {[%emt 0:07:10]} 19. Re5 {[%emt 0:01:38]} Nd7 {[%emt 0:01:47]} 20. Rd5 {[%emt 0:01:57]} Re8 {[%emt 0:08:38]} 21. Qa4 {[%emt 0:01:30]} Re7 {[%emt 0:06:47]} 22. Rxg5 {[%emt 0:03:25]} Ne5 {[%emt 0:02:20]} 23. Qd1 {[%emt 0:02:47]} g6 {[%emt 0:04:36]} 24. f4 {[%emt 0:01:25]} f6 {[%emt 0:00:34]} 25. Nd5 {[%emt 0:05:12]} Re8 {[%emt 0:00:32]} 26. fxe5 {[%emt 0:09:16]} fxg5 {[%emt 0:00:09]} 27. Nf6+ {[%emt 0:00:16]} Kg7 {[%emt 0:01:14]} 28. Nxe8+ {[%emt 0:00:46]} Qxe8 {[%emt 0:00:05]} 29. Qe1 {[%emt 0:00:57]} Qe7 {[%emt 0:01:36]} 30. Qe4 {[%emt 0:09:25]} Rf8 {[%emt 0:03:32]} 31. Re1 {[%emt 0:01:29]} Rf4 {[%emt 0:03:49]} 32. Qd5 {[%emt 0:06:25]} Nc2 {[%emt 0:00:46]} 33. Re4 {[%emt 0:01:09]} Nd4 {[%emt 0:04:04]} 34. Re3 {[%emt 0:10:47]} Rf7 {[%emt 0:02:44]} 35. e6 {[%emt 0:00:37]} Rf6 {[%emt 0:01:25]} 36. Qd7 {[%emt 0:00:39]} Kf8 {[%emt 0:00:14]} 37. Qc8+ {[%emt 0:01:31]} Qe8 {[%emt 0:00:46]} 38. e7+ {[%emt 0:00:21]} Kf7 {[%emt 0:00:44]} 39. Bd5+ {[%emt 0:00:11]} 1-0

[Event "Fagernes Chess Open 2025"]
[Site "Fagernes"]
[Date "2025.04.13"]
[Round "1.8"]
[White "Lysen, Terje Kevin G"]
[Black "Brattgjerd, August Minh"]
[Result "1-0"]
[Annotator "NA"]
[ECO "C02"]
[WhiteElo "1667"]
[BlackElo "1845"]
[PlyCount "49"]
[EventDate "2025.04.12"]
[EventCountry "NOR"]
[SourceTitle "playchess.com"]
[Source "ChessBase"]
[SourceQuality "1"]
[TimeControl "40/6000+30:2400+30"]

1. e4 {[%emt 0:00:02]} e6 {[%emt 0:00:57]} 2. d4 {[%emt 0:00:12]} d5 {[%emt 0:00:02]} 3. e5 {[%emt 0:00:15]} c5 {[%emt 0:00:05]} 4. c3 {[%emt 0:00:13]} Bd7 {[%emt 0:00:14]} 5. Nf3 {[%emt 0:00:36]} Qb6 {[%emt 0:00:15]} 6. a3 {[%emt 0:01:08]} Bb5 {[%emt 0:00:29]} 7. Bxb5+ {[%emt 0:06:36]} Qxb5 {[%emt 0:00:08]} 8. b4 {[%emt 0:00:11]} cxd4 {[%emt 0:01:56]} 9. cxd4 {[%emt 0:00:29]} a5 {[%emt 0:01:10]} 10. bxa5 {[%emt 0:01:11]} Nc6 {[%emt 0:02:59]} 11. Bd2 {[%emt 0:09:38]} Nxa5 {[%emt 0:03:17]} 12. a4 {[%emt 0:08:50]} Qa6 {[%emt 0:05:39]} 13. Nc3 {[%emt 0:01:12]} Ne7 {[%emt 0:04:54]} 14. Nb5 {[%emt 0:00:49]} Kd7 {[%emt 0:06:41]} 15. O-O {[%emt 0:06:51]} Nec6 {[%emt 0:04:26]} 16. Ng5 {[%emt 0:08:56]} f6 {[%emt 0:00:25]} 17. Nxe6 {[%emt 0:00:08]} Rc8 {[%emt 0:02:18]} 18. Nxf8+ {[%emt 0:01:27]} Rcxf8 {[%emt 0:01:33]} 19. Qg4+ {[%emt 0:01:10]} f5 {[%emt 0:02:43]} 20. Qxg7+ {[%emt 0:00:24]} Ne7 {[%emt 0:02:01]} 21. e6+ {[%emt 0:06:12]} Kd8 {[%emt 0:02:39]} 22. Bxa5+ {[%emt 0:02:20]} Qxa5 {[%emt 0:00:15]} 23. Qe5 {[%emt 0:00:17]} Qb6 {[%emt 0:01:52]} 24. Rac1 {[%emt 0:06:26]} Rhg8 {[%emt 0:02:53]} 25. Qb8+ {[%emt 0:01:13]} 1-0

[Event "Fagernes Chess Open 2025"]
[Site "Fagernes"]
[Date "2025.04.13"]
[Round "1.9"]
[White "Andersen, Guttorm"]
[Black "Sigvaldsen, Sebastian"]
[Result "1-0"]
[Annotator "NA"]
[ECO "D45"]
[WhiteElo "1842"]
[BlackElo "1613"]
[PlyCount "81"]
[EventDate "2025.04.12"]
[EventCountry "NOR"]
[SourceTitle "playchess.com"]
[Source "ChessBase"]
[SourceQuality "1"]
[TimeControl "40/6000+30:2400+30"]

1. d4 {[%emt 0:14:35]} Nf6 {[%emt 0:00:10]} 2. c4 {[%emt 0:01:07]} e6 {[%emt 0:00:44]} 3. Nc3 {[%emt 0:01:11]} d5 {[%emt 0:00:16]} 4. Nf3 {[%emt 0:00:28]} c6 {[%emt 0:01:13]} 5. e3 {[%emt 0:00:46]} Bd6 {[%emt 0:01:38]} 6. Bd3 {[%emt 0:03:11]} O-O {[%emt 0:05:04]} 7. a3 {[%emt 0:00:26]} Re8 {[%emt 0:06:36]} 8. O-O {[%emt 0:00:56]} e5 {[%emt 0:01:01]} 9. dxe5 {[%emt 0:03:45]} Bxe5 {[%emt 0:01:56]} 10. Qc2 {[%emt 0:02:44]} Qc7 {[%emt 0:07:03]} 11. cxd5 {[%emt 0:02:30]} cxd5 {[%emt 0:00:25]} 12. Nb5 {[%emt 0:02:39]} Qxc2 {[%emt 0:00:59]} 13. Bxc2 {[%emt 0:00:17]} Bd7 {[%emt 0:00:39]} 14. Nbd4 {[%emt 0:00:34]} Bd6 {[%emt 0:03:51]} 15. b4 {[%emt 0:05:37]} a6 {[%emt 0:05:19]} 16. Bb2 {[%emt 0:01:42]} Be6 {[%emt 0:00:41]} 17. Rfd1 {[%emt 0:05:39]} Nbd7 {[%emt 0:02:57]} 18. Nf5 {[%emt 0:03:27]} Bc7 {[%emt 0:06:03]} 19. Rd4 {[%emt 0:03:46]} Ne5 {[%emt 0:07:32]} 20. Rh4 {[%emt 0:01:10]} Ng6 {[%emt 0:04:53]} 21. Bxf6 {[%emt 0:05:54]} Nxh4 {[%emt 0:05:04]} 22. Bxh4 {[%emt 0:00:25]} Rac8 {[%emt 0:01:04]} 23. Ne7+ {[%emt 0:00:52]} Kf8 {[%emt 0:01:02]} 24. Nxc8 {[%emt 0:00:21]} Rxc8 {[%emt 0:00:08]} 25. Nd4 {[%emt 0:02:05]} Be5 {[%emt 0:01:24]} 26. Nxe6+ {[%emt 0:01:22]} fxe6 {[%emt 0:00:31]} 27. Ra2 {[%emt 0:00:11]} h6 {[%emt 0:01:34]} 28. g4 {[%emt 0:00:39]} g5 {[%emt 0:00:19]} 29. Bg3 {[%emt 0:00:07]} Bf6 {[%emt 0:00:03]} 30. Bd6+ {[%emt 0:02:44]} Kf7 {[%emt 0:00:57]} 31. Bc5 {[%emt 0:00:13]} Bd8 {[%emt 0:02:58]} 32. Bb3 {[%emt 0:01:48]} b5 {[%emt 0:02:11]} 33. f4 {[%emt 0:01:21]} Bf6 {[%emt 0:05:35]} 34. f5 {[%emt 0:00:31]} Rd8 {[%emt 0:00:21]} 35. fxe6+ {[%emt 0:00:26]} Kxe6 {[%emt 0:00:13]} 36. e4 {[%emt 0:00:19]} Ke5 {[%emt 0:00:55]} 37. Bxd5 {[%emt 0:00:37]} Kf4 {[%emt 0:00:14]} 38. Rf2+ {[%emt 0:00:08]} Kxg4 {[%emt 0:01:00]} 39. Rxf6 {[%emt 0:00:19]} h5 {[%emt 0:00:23]} 40. Be6+ {[%emt 0:00:19]} Kh4 {[%emt 0:00:32]} 41. Bf2# {[%emt 0:00:04]} 1-0